fUST/lending_fUST_20240930
["ID","MTS","AMOUNT","RATE_DAILY","PERIOD"]
[339529966,1727680259767,-562.16,0.0001467,2]
[339529967,1727680259776,-500.0,0.0001467,2]
[339529968,1727680259786,-500.0,0.0001467,2]
[339529969,1727680259795,-666.8,0.0001467,2]
[339529970,1727680259805,-500.0,0.0001467,2]
[339529971,1727680259814,-500.0,0.0001467,2]
[339529972,1727680259824,-500.0,0.0001467,2]
[339529973,1727680259833,-500.0,0.0001467,2]
[339529974,1727680259844,-500.0,0.0001467,2]
[339529975,1727680259853,-672.32,0.0001467,2]
[339529976,1727680259863,-500.0,0.0001467,2]
[339529977,1727680259873,-500.0,0.0001467,2]
[339529978,1727680259883,-1016.94,0.0001467,2]
[339529979,1727680259892,-500.0,0.0001467,2]
[339529980,1727680259902,-500.0,0.0001467,2]
[339529981,1727680259912,-500.0,0.0001467,2]
[339529982,1727680259922,-500.0,0.0001467,2]
[339529983,1727680259931,-500.0,0.0001467,2]
[339529984,1727680259941,-500.0,0.0001467,2]
[339529985,1727680259950,-1152.77,0.0001467,2]
[339529986,1727680259959,-622.29,0.0001467,2]
[339529987,1727680259969,-3977.0,0.0001467,2]
[339529988,1727680259978,-1899.06,0.0001467,2]
[339529989,1727680259988,-500.0,0.0001467,2]
[339529990,1727680259998,-646.0,0.0001467,2]
[339529991,1727680260007,-500.0,0.0001467,2]
[339529992,1727680260017,-2296.63,0.0001467,2]
[339529993,1727680260027,-541.31,0.0001467,2]
[339529994,1727680260036,-500.0,0.0001467,2]
[339529995,1727680260046,-152.71109472,0.0001467,2]
[339529996,1727680260056,-500.0,0.0001467,2]
[339529997,1727680260066,-500.0,0.0001467,2]
[339529998,1727680260075,-500.0,0.00014671,2]
[339529999,1727680260084,-515.22253526,0.00014671,2]
[339530000,1727680260094,-717.34,0.00014671,2]
[339530001,1727680260104,-500.0,0.00014671,2]
[339530002,1727680260114,-500.0,0.00014671,2]
[339530003,1727680260123,-500.0,0.00014671,2]
[339530004,1727680260132,-500.0,0.00014671,2]
[339530005,1727680260141,-500.0,0.00014671,2]
[339530006,1727680260150,-500.0,0.00014671,2]
[339530007,1727680260160,-500.0,0.00014671,2]
[339530008,1727680260169,-150.0,0.00014671,2]
[339530009,1727680260179,-629.28421942,0.00014671,2]
[339530010,1727680260188,-500.0,0.00014671,2]
[339530011,1727680260197,-500.0,0.00014671,2]
[339530012,1727680260206,-500.0,0.00014671,2]
[339530013,1727680260216,-531.53,0.00014671,2]
[339530014,1727680260225,-789.35,0.00014671,2]
[339530015,1727680260235,-500.0,0.00014671,2]
[339530016,1727680260244,-500.0,0.00014671,2]
[339530017,1727680260253,-500.0,0.00014671,2]
[339530018,1727680260262,-500.0,0.00014671,2]
[339530019,1727680260272,-500.0,0.00014671,2]
[339530020,1727680260281,-500.0,0.00014671,2]
[339530021,1727680260290,-1187.33,0.00014671,2]
[339530022,1727680260300,-500.0,0.00014671,2]
[339530023,1727680260310,-500.0,0.00014671,2]
[339530024,1727680260319,-500.0,0.00014671,2]
[339530025,1727680260328,-500.0,0.00014671,2]
[339530026,1727680260337,-500.0,0.00014671,2]
[339530027,1727680260347,-500.0,0.00014671,2]
[339530028,1727680260356,-500.0,0.00014671,2]
[339530029,1727680260366,-1020.38,0.00014671,2]
[339530030,1727680260375,-500.0,0.00014671,2]
[339530031,1727680260385,-423.78479755,0.00014671,2]
[339530032,1727680260394,-500.0,0.00014671,2]
[339530033,1727680260403,-500.0,0.00014671,2]
[339530034,1727680260415,-500.0,0.00014671,2]
[339530035,1727680260425,-500.0,0.00014671,2]
[339530036,1727680260434,-500.0,0.00014671,2]
[339530037,1727680260443,-877.51,0.00014671,2]
[339530038,1727680260453,-168.617411,0.00014671,2]
[339530039,1727680260462,-557.81735024,0.00014671,2]
[339530040,1727680260476,-500.0,0.00014671,2]
[339530041,1727680260485,-514.11133543,0.00014671,2]
[339530042,1727680260494,-500.0,0.00014671,2]
[339530043,1727680260504,-500.0,0.00014671,2]
[339530044,1727680260514,-500.0,0.00014671,2]
[339530045,1727680260523,-151.0,0.00014671,2]
[339530046,1727680260533,-677.79,0.00014671,2]
[339530047,1727680260544,-151.0,0.00014671,2]
[339530048,1727680260554,-820.94,0.00014671,2]
[339530049,1727680260563,-500.0,0.00014671,2]
[339530050,1727680260572,-200.268253,0.00014671,2]
[339530051,1727680260582,-500.0,0.00014671,2]
[339530052,1727680260591,-151.0,0.00014671,2]
[339530053,1727680260601,-641.16,0.00014671,2]
[339530054,1727680260610,-500.0,0.00014671,2]
[339530055,1727680260619,-500.0,0.00014671,2]
[339530056,1727680260629,-500.0,0.00014671,2]
[339530057,1727680260639,-500.0,0.00014671,2]
[339530058,1727680260648,-500.0,0.00014671,2]
[339530059,1727680260658,-508.22,0.00014671,2]
[339530060,1727680260668,-500.0,0.00014671,2]
[339530061,1727680260677,-500.0,0.00014671,2]
[339530062,1727680260687,-500.0,0.00014671,2]
[339530063,1727680260696,-500.0,0.00014671,2]
[339530064,1727680260705,-2581.56,0.00014671,2]
[339530065,1727680260715,-826.25,0.00014671,2]
[339530066,1727680260724,-500.0,0.00014671,2]
[339530067,1727680260733,-1161.71819,0.00014671,2]
[339530068,1727680260743,-1161.71819,0.00014671,2]
[339530069,1727680260752,-500.0,0.00014671,2]
[339530070,1727680260762,-375.293531,0.00014671,2]
[339530071,1727680260771,-500.0,0.00014671,2]
[339530072,1727680260781,-898.56,0.00014671,2]
[339530073,1727680260791,-500.0,0.00014671,2]
[339530074,1727680260800,-500.0,0.00014671,2]
[339530075,1727680260810,-375.293531,0.00014671,2]
[339530076,1727680260820,-500.0,0.00014671,2]
[339530077,1727680260829,-500.0,0.00014671,2]
[339530078,1727680260839,-500.0,0.00014671,2]
[339530079,1727680261015,-500.0,0.00014671,2]
[339530080,1727680261024,-500.0,0.00014671,2]
[339530081,1727680261033,-500.0,0.00014671,2]
[339530082,1727680261042,-568.15935566,0.00014671,2]
[339530083,1727680261052,-500.0,0.00014671,2]
[339530084,1727680261061,-545.78,0.00014671,2]
[339530085,1727680261070,-679.61,0.00014671,2]
[339530086,1727680261080,-500.0,0.00014671,2]
[339530087,1727680261090,-500.0,0.00014671,2]
[339530088,1727680261099,-500.0,0.00014671,2]
[339530089,1727680261109,-500.0,0.00014671,2]
[339530090,1727680261119,-500.0,0.00014671,2]
[339530091,1727680261129,-216.062877,0.00014671,2]
[339530092,1727680261138,-500.0,0.00014671,2]
[339530093,1727680261148,-216.062877,0.00014671,2]
[339530094,1727680261157,-500.0,0.00014671,2]
[339530095,1727680261171,-500.0,0.00014671,2]
[339530096,1727680261180,-500.0,0.00014671,2]
[339530097,1727680261189,-500.0,0.00014671,2]
[339530098,1727680261198,-627.1,0.00014671,2]
[339530099,1727680261209,-500.0,0.00014671,2]
[339530100,1727680261218,-500.0,0.00014671,2]
[339530101,1727680261228,-500.0,0.00014671,2]
[339530102,1727680261237,-500.0,0.00014671,2]
[339530103,1727680261246,-500.0,0.00014671,2]
[339530104,1727680261255,-500.0,0.00014671,2]
[339530105,1727680261265,-500.0,0.00014671,2]
[339530106,1727680261274,-500.0,0.00014671,2]
[339530107,1727680261283,-500.0,0.00014671,2]
[339530108,1727680261293,-500.0,0.00014671,2]
[339530109,1727680261303,-500.0,0.00014671,2]
[339530110,1727680261312,-500.0,0.00014671,2]
[339530111,1727680261322,-500.0,0.00014671,2]
[339530112,1727680261331,-508.0,0.00014671,2]
[339530113,1727680261340,-1158.1,0.00014671,2]
[339530114,1727680261350,-500.0,0.00014671,2]
[339530115,1727680261359,-268.43,0.00014671,2]
[339530116,1727680261368,-500.0,0.00014671,2]
[339530117,1727680261377,-602.26,0.00014671,2]
[339530118,1727680261387,-500.0,0.00014671,2]
[339530119,1727680261397,-500.0,0.00014671,2]
[339530120,1727680261406,-611.64,0.00014671,2]
[339530121,1727680261417,-500.0,0.00014671,2]
[339530122,1727680261426,-500.0,0.00014671,2]
[339530123,1727680261435,-500.0,0.00014671,2]
[339530124,1727680261445,-546.22,0.00014671,2]
[339530125,1727680261455,-500.0,0.00014671,2]
[339530126,1727680261464,-500.0,0.00014671,2]
[339530127,1727680261478,-500.0,0.00014671,2]
[339530128,1727680261487,-500.0,0.00014671,2]
[339530129,1727680261496,-500.0,0.00014671,2]
[339530130,1727680261506,-500.0,0.00014671,2]
[339530131,1727680261517,-500.0,0.00014671,2]
[339530132,1727680261527,-789.18,0.00014671,2]
[339530133,1727680261537,-500.0,0.00014671,2]
[339530134,1727680261548,-500.0,0.00014671,2]
[339530135,1727680261557,-1774.31,0.00014671,2]
[339530136,1727680261567,-500.0,0.00014671,2]
[339530137,1727680261576,-512.22572939,0.00014671,2]
[339530138,1727680261586,-647.44416965,0.00014671,2]
[339530139,1727680261595,-500.0,0.00014671,2]
[339530140,1727680261604,-2092.12,0.00014671,2]
[339530141,1727680261613,-500.0,0.00014671,2]
[339530142,1727680261622,-500.0,0.00014671,2]
[339530143,1727680261633,-500.0,0.00014671,2]
[339530144,1727680261642,-632.08,0.00014671,2]
[339530145,1727680261652,-517.42,0.00014671,2]
[339530146,1727680261662,-500.0,0.00014671,2]
[339530147,1727680261672,-500.0,0.00014671,2]
[339530148,1727680261681,-500.0,0.00014671,2]
[339530149,1727680261691,-756.87,0.00014671,2]
[339530150,1727680261700,-500.0,0.00014671,2]
[339530151,1727680261710,-500.0,0.00014671,2]
[339530152,1727680261719,-500.0,0.00014671,2]
[339530153,1727680261729,-488.65015113,0.00014671,2]
[339530154,1727680261739,-1162.29,0.00014671,2]
[339530155,1727680261748,-500.0,0.00014671,2]
[339530156,1727680261758,-500.0,0.00014671,2]
[339530157,1727680261767,-508.60070168,0.00014671,2]
[339530158,1727680261776,-500.0,0.00014671,2]
[339530159,1727680261786,-519.33805047,0.00014671,2]
[339530160,1727680261795,-500.0,0.00014671,2]
[339530161,1727680261804,-500.0,0.00014671,2]
[339530162,1727680261814,-500.0,0.00014671,2]
[339530163,1727680261823,-572.04,0.00014671,2]
[339530164,1727680261833,-500.0,0.00014671,2]
[339530165,1727680261843,-500.0,0.00014671,2]
[339530166,1727680261852,-220.438095,0.00014671,2]
[339530167,1727680261862,-500.0,0.00014671,2]
[339530168,1727680261872,-220.438095,0.00014671,2]
[339530169,1727680261882,-518.56,0.00014671,2]
[339530170,1727680261891,-500.0,0.00014671,2]
[339530171,1727680261901,-517.37541417,0.00014671,2]
[339530172,1727680261913,-500.0,0.00014671,2]
[339530173,1727680261923,-500.0,0.00014671,2]
[339530174,1727680261932,-151.0,0.00014671,2]
[339530175,1727680261942,-500.0,0.00014671,2]
[339530176,1727680261951,-500.0,0.00014671,2]
[339530177,1727680261961,-500.0,0.00014671,2]
[339530178,1727680261971,-500.0,0.00014671,2]
[339530179,1727680261980,-500.0,0.00014671,2]
[339530180,1727680261990,-500.0,0.00014671,2]
[339530181,1727680261999,-1572.51,0.00014671,2]
[339530182,1727680262008,-500.0,0.00014671,2]
[339530183,1727680262018,-500.0,0.00014671,2]
[339530184,1727680262027,-534.89,0.00014671,2]
[339530185,1727680262036,-500.0,0.00014671,2]
[339530186,1727680262045,-524.69,0.00014671,2]
[339530187,1727680262054,-377.49941226,0.00014671,2]
[339530188,1727680262063,-500.0,0.00014671,2]
[339530189,1727680262072,-500.0,0.00014671,2]
[339530190,1727680262081,-500.0,0.00014671,2]
[339530191,1727680262091,-500.0,0.00014671,2]
[339530192,1727680262101,-500.0,0.00014671,2]
[339530193,1727680262111,-2352.11,0.00014671,2]
[339530194,1727680262120,-598.21,0.00014671,2]
[339530195,1727680262130,-500.0,0.00014671,2]
[339530196,1727680262140,-500.0,0.00014671,2]
[339530197,1727680262149,-951.31,0.00014671,2]
[339530198,1727680262159,-500.0,0.00014671,2]
[339530199,1727680262170,-151.0,0.00014671,2]
[339530200,1727680262179,-1315.95,0.00014671,2]
[339530201,1727680262188,-590.21,0.00014671,2]
[339530202,1727680262197,-500.0,0.00014671,2]
[339530203,1727680262206,-500.0,0.00014671,2]
[339530204,1727680262215,-309.114078,0.00014671,2]
[339530205,1727680262224,-500.0,0.00014671,2]
[339530206,1727680262234,-309.114078,0.00014671,2]
[339530207,1727680262243,-151.0,0.00014671,2]
[339530208,1727680262253,-500.0,0.00014671,2]
[339530209,1727680262262,-500.0,0.00014671,2]
[339530210,1727680262271,-508.81,0.00014671,2]
[339530211,1727680262280,-663.56,0.00014671,2]
[339530212,1727680262290,-500.0,0.00014671,2]
[339530213,1727680262300,-500.0,0.00014671,2]
[339530214,1727680262309,-500.0,0.00014671,2]
[339530215,1727680262319,-509.0,0.00014671,2]
[339530216,1727680262328,-500.0,0.00014671,2]
[339530217,1727680262337,-500.0,0.00014671,2]
[339530218,1727680262347,-500.0,0.00014671,2]
[339530219,1727680262356,-1424.01,0.00014671,2]
[339530220,1727680262366,-500.0,0.00014671,2]
[339530221,1727680262375,-500.0,0.00014671,2]
[339530222,1727680262384,-500.0,0.00014671,2]
[339530223,1727680262394,-500.0,0.00014671,2]
[339530224,1727680262403,-500.0,0.00014671,2]
[339530225,1727680262419,-500.0,0.00014671,2]
[339530226,1727680262429,-151.0,0.00014671,2]
[339530227,1727680262438,-500.0,0.00014671,2]
[339530228,1727680262447,-500.0,0.00014671,2]
[339530229,1727680262457,-500.0,0.00014671,2]
[339530230,1727680262468,-500.0,0.00014671,2]
[339530231,1727680262479,-500.0,0.00014671,2]
[339530232,1727680262489,-500.0,0.00014671,2]
[339530233,1727680262498,-373.782663,0.00014671,2]
[339530234,1727680262507,-500.0,0.00014671,2]
[339530235,1727680262518,-766.82,0.00014671,2]
[339530236,1727680262527,-500.0,0.00014671,2]
[339530237,1727680262536,-500.0,0.00014671,2]
[339530238,1727680262546,-500.0,0.00014671,2]
[339530239,1727680262556,-500.0,0.00014671,2]
[339530240,1727680262566,-373.782663,0.00014671,2]
[339530241,1727680262575,-535.0235395,0.00014671,2]
[339530242,1727680262584,-500.0,0.00014671,2]
[339530243,1727680262593,-500.0,0.00014671,2]
[339530244,1727680262602,-500.0,0.00014671,2]
[339530245,1727680262612,-848.028938,0.00014671,2]
[339530246,1727680262621,-477.20734334,0.00014671,2]
[339530247,1727680262631,-848.028938,0.00014671,2]
[339530248,1727680262641,-500.0,0.00014671,2]
[339530249,1727680262650,-579.35,0.00014671,2]
[339530250,1727680262659,-500.0,0.00014671,2]
[339530251,1727680262670,-500.0,0.00014671,2]
[339530252,1727680262679,-159.221219,0.00014671,2]
[339530253,1727680262690,-1263.04,0.00014671,2]
[339530254,1727680262700,-159.221219,0.00014671,2]
[339530255,1727680262710,-500.0,0.00014671,2]
[339530256,1727680262719,-539.98488515,0.00014671,2]
[339530257,1727680262729,-542.24,0.00014671,2]
[339530258,1727680262738,-500.0,0.00014671,2]
[339530259,1727680262748,-500.0,0.00014671,2]
[339530260,1727680262757,-500.0,0.00014671,2]
[339530261,1727680262767,-497.02703912,0.00014671,2]
[339530262,1727680263468,-500.0,0.00014123,2]
[339530263,1727680263479,-500.0,0.00014123,2]
[339530264,1727680263488,-500.0,0.00014123,2]
[339530265,1727680263498,-500.0,0.00014397,2]
[339530266,1727680263507,-153.0,0.000146,2]
[339530267,1727680263518,-49.533565,0.00014671,2]
[339530268,1727680263528,-500.0,0.00014671,2]
[339530269,1727680263537,-500.0,0.00014671,2]
[339530270,1727680263547,-675.48,0.00014671,2]
[339530271,1727680263557,-2038.26215016,0.00014671,2]
[339530272,1727680263938,926.44723273,0.00014,2]
[339530273,1727680264559,484.72018308,0.00014026,2]
[339530274,1727680384112,156.0,0.00014,2]
[339530279,1727680455237,424.13016023,0.00014013,2]
[339530282,1727680624769,150.112233,0.000141,2]
[339530283,1727680660468,371.11389014,0.00014013,2]
[339530284,1727680681418,300.0,0.00014111,2]
[339530285,1727680684514,300.0,0.00014111,2]
[339530286,1727680712286,456.8689548,0.00014111,2]
[339530287,1727680712329,500.0,0.00014111,2]
[339530288,1727680712550,445.92341018,0.00014111,2]
[339530289,1727680712581,500.0,0.00014111,2]
[339530290,1727680712725,500.0,0.00014111,2]
[339530291,1727680712812,320.34072877,0.00014111,2]
[339530292,1727680712912,500.0,0.00014111,2]
[339530293,1727680715352,500.0,0.00014111,2]
[339530294,1727680715391,500.0,0.00014111,2]
[339530295,1727680715428,500.0,0.00014111,2]
[339530296,1727680715463,500.0,0.00014111,2]
[339530297,1727680715497,500.0,0.00014111,2]
[339530298,1727680715532,500.0,0.00014111,2]
[339530299,1727680715571,500.0,0.00014111,2]
[339530300,1727680715610,500.0,0.00014111,2]
[339530301,1727680715642,498.20722826,0.00014111,2]
[339530302,1727680715673,500.0,0.00014111,2]
[339530303,1727680715715,500.0,0.00014111,2]
[339530304,1727680715765,493.88338318,0.00014111,2]
[339530305,1727680715796,500.0,0.00014111,2]
[339530306,1727680715828,331.57702227,0.00014111,2]
[339530307,1727680715857,500.0,0.00014111,2]
[339530308,1727680715900,500.0,0.00014111,2]
[339530309,1727680715931,500.0,0.00014111,2]
[339530310,1727680715975,500.0,0.00014111,2]
[339530311,1727680716044,500.0,0.00014111,2]
[339530312,1727680716090,500.0,0.00014111,2]
[339530313,1727680716125,500.0,0.00014111,2]
[339530314,1727680716162,500.0,0.00014111,2]
[339530315,1727680716201,500.0,0.00014111,2]
[339530316,1727680716245,500.0,0.00014111,2]
[339530317,1727680716298,500.0,0.00014111,2]
[339530318,1727680716379,500.0,0.00014111,2]
[339530319,1727680716435,500.0,0.00014111,2]
[339530320,1727680716477,500.0,0.00014111,2]
[339530321,1727680716518,500.0,0.00014111,2]
[339530322,1727680716562,500.0,0.00014111,2]
[339530323,1727680716609,500.0,0.00014111,2]
[339530324,1727680716654,500.0,0.00014111,2]
[339530325,1727680734643,-148239.718566,0.00014112,2]
[339530326,1727680734668,-96938.3497724,0.00014112,2]
[339530327,1727680734692,-654.54386665,0.00014113,2]
[339530328,1727680734714,-111179.788924,0.00014113,2]
[339530329,1727680734737,-72703.7623293,0.00014113,2]
[339530330,1727680734759,-10974.0,0.00014121,2]
[339530331,1727680734780,-1136.84025972,0.00014121,2]
[339530332,1727680734803,-500.0,0.00014122,2]
[339530333,1727680734826,-500.0,0.00014122,2]
[339530334,1727680734850,-500.0,0.00014122,2]
[339530335,1727680734872,-750.0,0.00014122,2]
[339530336,1727680734895,-500.0,0.00014122,2]
[339530337,1727680734924,-500.0,0.00014122,2]
[339530338,1727680734949,-500.0,0.00014122,2]
[339530339,1727680734972,-500.0,0.00014122,2]
[339530340,1727680734997,-504.5894092,0.00014122,2]
[339530341,1727680735021,-500.0,0.00014122,2]
[339530342,1727680735044,-500.0,0.00014122,2]
[339530343,1727680735066,-500.0,0.00014122,2]
[339530344,1727680735093,-805.98,0.00014122,2]
[339530345,1727680735116,-541.9,0.00014122,2]
[339530346,1727680735139,-618.1,0.00014122,2]
[339530347,1727680735463,-500.0,0.00014122,2]
[339530348,1727680735487,-622.54,0.00014122,2]
[339530349,1727680735511,-500.0,0.00014122,2]
[339530350,1727680735533,-500.0,0.00014122,2]
[339530351,1727680735556,-500.0,0.00014122,2]
[339530352,1727680735577,-183.01463587,0.00014122,2]
[339530353,1727680735600,-500.0,0.00014122,2]
[339530354,1727680735622,-588.89,0.00014122,2]
[339530355,1727680735644,-500.0,0.00014122,2]
[339530356,1727680735667,-500.0,0.00014122,2]
[339530357,1727680735688,-998.35,0.00014122,2]
[339530358,1727680735710,-500.0,0.00014122,2]
[339530359,1727680735732,-500.0,0.00014122,2]
[339530360,1727680735753,-2371.11,0.00014122,2]
[339530361,1727680735775,-501.29,0.00014122,2]
[339530362,1727680735797,-500.0,0.00014122,2]
[339530363,1727680735819,-500.0,0.00014122,2]
[339530364,1727680735844,-500.0,0.00014122,2]
[339530365,1727680735866,-500.0,0.00014122,2]
[339530366,1727680735888,-500.0,0.00014122,2]
[339530367,1727680735914,-500.0,0.00014122,2]
[339530368,1727680735936,-500.0,0.00014122,2]
[339530369,1727680735959,-1044.1,0.00014122,2]
[339530370,1727680735982,-500.0,0.00014122,2]
[339530371,1727680736005,-500.0,0.00014122,2]
[339530372,1727680736028,-500.0,0.00014122,2]
[339530373,1727680736051,-500.0,0.00014122,2]
[339530374,1727680736074,-577.17,0.00014122,2]
[339530375,1727680736097,-500.0,0.00014122,2]
[339530376,1727680736120,-2200.94,0.00014122,2]
[339530377,1727680736143,-500.0,0.00014122,2]
[339530378,1727680736166,-500.0,0.00014122,2]
[339530379,1727680736189,-512.6,0.00014122,2]
[339530380,1727680736211,-500.0,0.00014122,2]
[339530381,1727680736234,-500.0,0.00014122,2]
[339530382,1727680736256,-500.0,0.00014122,2]
[339530383,1727680736278,-500.0,0.00014122,2]
[339530384,1727680736300,-500.0,0.00014122,2]
[339530385,1727680736322,-513.00640737,0.00014122,2]
[339530386,1727680736358,-199.20222567,0.00014122,2]
[339530387,1727680736381,-500.0,0.00014122,2]
[339530388,1727680736403,-362.23114972,0.00014122,2]
[339530389,1727680736427,-500.0,0.00014122,2]
[339530390,1727680736450,-500.0,0.00014122,2]
[339530391,1727680736472,-500.0,0.00014122,2]
[339530392,1727680736497,-500.0,0.00014122,2]
[339530393,1727680736520,-658.74,0.00014122,2]
[339530394,1727680736544,-500.0,0.00014122,2]
[339530395,1727680736567,-581.45954923,0.00014122,2]
[339530396,1727680736592,-500.0,0.00014122,2]
[339530397,1727680736614,-1261.12,0.00014122,2]
[339530398,1727680736636,-500.0,0.00014122,2]
[339530399,1727680736658,-500.0,0.00014122,2]
[339530400,1727680736679,-500.0,0.00014122,2]
[339530401,1727680736701,-756.3,0.00014122,2]
[339530402,1727680736723,-500.0,0.00014122,2]
[339530403,1727680736745,-28337.96,0.00014122,2]
[339530404,1727680736767,-523.47,0.00014122,2]
[339530405,1727680736789,-500.0,0.00014122,2]
[339530406,1727680736812,-500.0,0.00014122,2]
[339530407,1727680736834,-752.66,0.00014122,2]
[339530408,1727680736857,-500.0,0.00014122,2]
[339530409,1727680736880,-500.0,0.00014122,2]
[339530410,1727680736905,-500.0,0.00014122,2]
[339530411,1727680736928,-500.0,0.00014122,2]
[339530412,1727680736953,-2004.95,0.00014122,2]
[339530413,1727680736977,-4418.63,0.00014122,2]
[339530414,1727680736999,-297.74579969,0.00014122,2]
[339530415,1727680737022,-500.0,0.00014122,2]
[339530416,1727680737043,-500.0,0.00014122,2]
[339530417,1727680737065,-574.15247574,0.00014122,2]
[339530418,1727680737091,-500.0,0.00014122,2]
[339530419,1727680737114,-500.0,0.00014122,2]
[339530420,1727680737136,-500.0,0.00014122,2]
[339530421,1727680737158,-500.0,0.00014122,2]
[339530422,1727680737181,-605.74,0.00014122,2]
[339530423,1727680737203,-500.0,0.00014122,2]
[339530424,1727680737226,-953.95,0.00014122,2]
[339530425,1727680737248,-500.0,0.00014122,2]
[339530426,1727680737271,-500.0,0.00014122,2]
[339530427,1727680737295,-500.0,0.00014122,2]
[339530428,1727680737317,-500.0,0.00014122,2]
[339530429,1727680737341,-1777.52,0.00014122,2]
[339530430,1727680737363,-500.0,0.00014122,2]
[339530431,1727680737386,-500.0,0.00014122,2]
[339530432,1727680737409,-500.0,0.00014122,2]
[339530433,1727680737432,-500.0,0.00014122,2]
[339530434,1727680737454,-500.0,0.00014122,2]
[339530435,1727680737477,-150.0,0.00014122,2]
[339530436,1727680737500,-500.0,0.00014122,2]
[339530437,1727680737524,-500.0,0.00014122,2]
[339530438,1727680737547,-500.0,0.00014122,2]
[339530439,1727680737568,-500.0,0.00014122,2]
[339530440,1727680737595,-557.72,0.00014122,2]
[339530441,1727680737618,-655.06,0.00014122,2]
[339530442,1727680737641,-500.0,0.00014122,2]
[339530443,1727680737663,-536.27154334,0.00014122,2]
[339530444,1727680737686,-623.62,0.00014122,2]
[339530445,1727680737708,-500.0,0.00014122,2]
[339530446,1727680737732,-500.0,0.00014122,2]
[339530447,1727680737753,-500.0,0.00014122,2]
[339530448,1727680737775,-500.0,0.00014122,2]
[339530449,1727680737798,-500.0,0.00014122,2]
[339530450,1727680737820,-790.78,0.00014122,2]
[339530451,1727680737844,-500.0,0.00014122,2]
[339530452,1727680737866,-500.0,0.00014122,2]
[339530453,1727680737888,-500.0,0.00014122,2]
[339530454,1727680737912,-500.0,0.00014122,2]
[339530455,1727680737934,-500.0,0.00014122,2]
[339530456,1727680737958,-558.5913409,0.00014122,2]
[339530457,1727680737981,-500.0,0.00014122,2]
[339530458,1727680738003,-548.21,0.00014122,2]
[339530459,1727680738025,-21.3317452,0.00014122,2]
[339530460,1727680747008,469.396407,0.00013699,2]
[339530461,1727680771381,500.0,0.00014111,2]
[339530462,1727680771421,364.16755392,0.00014111,2]
[339530463,1727680771455,500.0,0.00014111,2]
[339530464,1727680771515,500.0,0.00014111,2]
[339530465,1727680771564,500.0,0.00014111,2]
[339530466,1727680771605,201.29904085,0.00014111,2]
[339530467,1727680771649,436.1851938,0.00014111,2]
[339530468,1727680771741,294.63361623,0.00014111,2]
[339530469,1727680771783,500.0,0.00014111,2]
[339530470,1727680771833,500.0,0.00014111,2]
[339530471,1727680771872,500.0,0.00014111,2]